[Event "German Bundesliga 2024-25"]
[Site "Germany"]
[Date "2024.11.30"]
[Round "3.9"]
[White "Navara, David"]
[Black "Fedoseev, Vladimir"]
[Result "1/2-1/2"]
[Annotator "TA"]
[ECO "C42"]
[WhiteElo "2674"]
[BlackElo "2712"]
[PlyCount "99"]
[EventDate "2024.09.27"]
[EventType "team-tourn"]
[EventCountry "GER"]
[SourceTitle "playchess.com"]
[Source "ChessBase"]
[SourceQuality "1"]
[WhiteTeam "Muelheim Nord"]
[BlackTeam "Bayern Muenchen"]
[TimeControl "40/5400+30:1800+30"]

{[%evp 22,99,13,6,23,16,16,8,6,20,14,16,8,11,0,0,0,15,10,-93,-103,-78,-108,-95,-120,-125,-138,-131,-131,-127,-127,-130,-140,-125,-125,-125,-135,-120,-117,-137,-122,-127,-8,-18,-8,-12,-12,-8,-15,-15,-15,-52,0,0,0,0,0,0,0,0,0,0,0,0,0,0,0,0,0,0,0,0,0,0,0,0,0,0,0,0]} 1. e4 {[%emt 0:00:01]} e5 {[%emt 0:00:49]} 2. Nf3 {[%emt 0:00:04]} Nf6 {[%emt 0:00:48]} 3. Nxe5 {[%emt 0:00:15]} d6 {[%emt 0:00:07]} 4. Nf3 {[%emt 0:00:08]} Nxe4 {[%emt 0:00:09]} 5. d4 {[%emt 0:00:11]} d5 {[%emt 0:00:07]} 6. Bd3 {[%emt 0:00:06]} Bd6 {[%emt 0:00:08]} 7. O-O {[%emt 0:00:13]} O-O {[%emt 0:00:09]} 8. c4 {[%emt 0:00:52]} c6 {[%emt 0:00:08]} 9. Nc3 {[%emt 0:02:31]} Nxc3 {[%emt 0:00:15]} 10. bxc3 {[%emt 0:00:05]} dxc4 {[%emt 0:00:10]} 11. Bxc4 {[%emt 0:00:08]} Bg4 {[%emt 0:00:07]} 12. h3 {[%emt 0:05:47]} Bh5 {[%emt 0:01:10]} 13. g4 {[%emt 0:26:17]} Bg6 {[%emt 0:00:13]} 14. Ne5 {[%emt 0:00:41]} Bxe5 {[%emt 0:00:20]} 15. dxe5 {[%emt 0:00:13]} Qa5 {[%emt 0:00:03][%csl LRc3,LRe5] Wards off Ba3} 16. Qe2 {[%emt 0:02:03] Strongly threatening f4.} Nd7 {[%emt 0:00:25]} 17. f4 {[%emt 0:08:20] Hoping for f5.} b5 $1 $36 {[%emt 0:00:07][%cal Oa5c3][%mdl 2048] Black has good play.} 18. Bb3 {[%emt 0:00:06] f5 would now be deadly.} Nc5 $1 {[%emt 0:00:06][%cal Oc5b3] ...Nxb3! is the strong threat.} 19. Be3 {[%emt 0:05:40]} Bd3 {[%emt 0:02:06] [#]} (19... Qxc3 $2 20. Rac1 Qd3 21. Qxd3 Nxd3 22. Rxc6 $18) 20. Qd1 {[%emt 0:10:46]} Bxf1 $17 {[%emt 0:08:14]} (20... Qxc3 $6 21. Rc1 $14) 21. Bxc5 {[%emt 0:00:18] [#]} Be2 {[%emt 0:04:30]} 22. Qe1 {[%emt 0:05:16]} (22. Qxe2 $2 Qxc3 23. Rf1 Qxc5+ $19) (22. Qd4 Rfd8) 22... Rfe8 {[%emt 0:11:52]} 23. e6 {[%emt 0:01:21]} (23. Qxe2 $2 Qxc3 24. Rf1 Qxc5+ $19) 23... Bc4 {[%emt 0:06:40]} 24. e7 {[%emt 0:00:40] [#]} Bxb3 {[%emt 0:00:19]} 25. axb3 {[%emt 0:00:07]} Qc7 {[%emt 0:00:03]} 26. Qe5 {[%emt 0:07:40]} Qxe5 {[%emt 0:08:32]} 27. fxe5 {[%emt 0:00:07][%cal Ob3b4][%mdl 4096] Endgame. KRR-KRB} a5 {[%emt 0:00:02]} 28. Kf2 {[%emt 0:02:49]} a4 {[%emt 0:01:33]} 29. bxa4 {[%emt 0:00:07]} bxa4 {[%emt 0:03:33]} ({Worse is} 29... Rxa4 30. Rd1 Raa8 31. Ke3 $16) 30. Ke3 {[%emt 0:00:07]} h6 {[%emt 0:00:37]} 31. h4 {[%emt 0:06:58]} Kh7 {[%emt 0:04:34]} ({Better is} 31... f6 $17 {aiming for ...Kf7.} 32. e6 h5 33. gxh5 Kh7 (33... Ra5 34. Rd1 $15)) 32. Ke4 $11 {[%emt 0:04:43]} h5 {[%emt 0:18:05]} 33. gxh5 {[%emt 0:02:31]} Ra5 {[%emt 0:10:12]} 34. Bb4 {[%emt 0:02:15]} Rb5 {[%emt 0:00:06] Threatens to win with ...c5.} 35. Bd6 {[%emt 0:01:08]} ({Of course not} 35. Rxa4 c5 36. Ba5 Rxe7 $17) 35... f6 {[%emt 0:00:17]} 36. Rxa4 {[%emt 0:00:53] [#]} (36. exf6 {seems wilder.} gxf6 37. Rxa4 Rd5 38. Rd4) 36... Rxe7 {[%emt 0:04:48]} 37. Bxe7 {[%emt 0:00:07] The position is equal.} Rxe5+ {[%emt 0:00:04]} 38. Kf4 {[%emt 0:02:24]} Rxe7 {[%emt 0:00:07] KR-KR} 39. Rc4 $1 {[%emt 0:01:27]} Re6 {[%emt 0:00:19]} 40. Rc5 {[%emt 0:00:13]} Kh6 {[%emt 0:04:13]} 41. c4 {[%emt 0:06:45]} Rd6 {[%emt 0:00:13]} 42. Kg3 {[%emt 0:01:11]} Rd3+ {[%emt 0:01:15]} 43. Kg4 {[%emt 0:00:26]} Rd4+ {[%emt 0:00:08]} 44. Kh3 {[%emt 0:00:43]} f5 {[%emt 0:02:31]} 45. Rxf5 {[%emt 0:01:49]} Rxc4 {[%emt 0:00:28]} 46. Rg5 {[%emt 0:00:13]} c5 {[%emt 0:01:17]} 47. Rg6+ {[%emt 0:00:08]} Kxh5 {[%emt 0:00:57]} 48. Rxg7 {[%emt 0:00:05]} Rxh4+ {[%emt 0:00:06]} 49. Kg3 {[%emt 0:00:04] Threatening mate with Rh7+.} Rc4 {[%emt 0:00:16]} 50. Kf3 {[%emt 0:00:08] Weighted Error Value: White=0.08 (flawless) /Black=0.07 (flawless) .  Mistake:       	White=1     	Black=2      Inaccurate:     	White=1     	---        OK:         	White=16    	Black=17     Best:        	White=7     	Black=3      Strong:       	White=1     	Black=2      Brilliant:      	---       	Black=1} 1/2-1/2

[Event "German Bundesliga 2024-25"]
[Site "Germany"]
[Date "2024.11.30"]
[Round "3.9"]
[White "Christiansen, Johan-Sebastian"]
[Black "Sarana, Alexey"]
[Result "1/2-1/2"]
[Annotator "TA"]
[ECO "C26"]
[WhiteElo "2661"]
[BlackElo "2679"]
[PlyCount "36"]
[EventDate "2024.09.27"]
[EventType "team-tourn"]
[EventCountry "GER"]
[SourceTitle "playchess.com"]
[Source "ChessBase"]
[SourceQuality "1"]
[WhiteTeam "St. Pauli"]
[BlackTeam "Viernheim"]
[TimeControl "40/5400+30:1800+30"]

{[%evp 9,36,-6,0,0,0,0,0,0,0,0,0,0,0,0,0,0,0,0,0,0,0,0,0,0,0,0,0,0,0]} 1. e4 {[%emt 0:00:05]} e5 {[%emt 0:00:09]} 2. Nc3 {[%emt 0:00:16]} Nf6 {[%emt 0:00:18]} 3. d4 {[%emt 0:00:06]} exd4 {[%emt 0:00:13]} 4. Qxd4 {[%emt 0:00:02]} Nc6 {[%emt 0:00:16]} 5. Qd3 {[%emt 0:00:04] [#]} d5 $1 {[%emt 0:02:10] The position is equal.} 6. Bf4 {[%emt 0:00:10]} d4 {[%emt 0:02:19]} 7. Nb5 {[%emt 0:00:06]} Bb4+ {[%emt 0:00:07]} 8. c3 {[%emt 0:00:13]} dxc3 {[%emt 0:06:13]} 9. bxc3 {[%emt 0:10:56]} (9. Nxc7+ $2 {loses.} Qxc7 10. bxc3 Qxf4 $19) 9... Ba5 {[%emt 0:00:23] [#] And now ...Qe7 would win.} 10. Qxd8+ {[%emt 0:03:33]} Kxd8 {[%emt 0:02:39]} 11. O-O-O+ {[%emt 0:02:47]} Bd7 {[%emt 0:00:12][%cal Oa7a6] Hoping for ...a6!} 12. f3 {[%emt 0:02:57]} a6 {[%emt 0:00:07]} 13. Nd4 {[%emt 0:01:39]} Nxd4 {[%emt 0:00:06]} 14. cxd4 {[%emt 0:00:12]} Ba4 {[%emt 0:00:03]} 15. Rd3 {[%emt 0:00:11]} Bb5 {[%emt 0:00:03]} 16. Rd1 {[%emt 0:00:11]} Ba4 {[%emt 0:00:03]} 17. Rd3 {[%emt 0:00:05]} Bb5 {[%emt 0:00:04]} 18. Rd1 {[%emt 0:00:05]} Ba4 {[%emt 0:00:03] An uneventful encounter.   Weighted Error Value: White=0.00 (flawless) /Black=0.00 (flawless) .  OK:         	White=9     	Black=12     Best:        	White=1     	---} 1/2-1/2

[Event "German Bundesliga 2024-25"]
[Site "Germany"]
[Date "2024.11.30"]
[Round "3.9"]
[White "Kazakouski, Valery"]
[Black "Vachier-Lagrave, Maxime"]
[Result "0-1"]
[Annotator "TA"]
[ECO "D85"]
[WhiteElo "2567"]
[BlackElo "2737"]
[PlyCount "68"]
[EventDate "2024.09.27"]
[EventType "team-tourn"]
[EventCountry "GER"]
[SourceTitle "playchess.com"]
[Source "ChessBase"]
[SourceQuality "1"]
[WhiteTeam "Bad Mergentheim"]
[BlackTeam "Baden-Baden"]
[TimeControl "40/5400+30:1800+30"]

{[%evp 14,68,18,6,18,18,24,18,26,23,25,11,35,25,26,37,27,27,31,0,0,0,0,0,0,-12,-14,-28,-23,-62,-62,-83,-70,-74,-65,-115,-110,-109,-115,-118,-121,-157,-157,-371,-384,-472,-456,-483,-476,-434,-284,-750,-755,-752,-720,-702,-700]} 1. d4 {[%emt 0:00:06]} Nf6 {[%emt 0:00:07]} 2. c4 {[%emt 0:00:07]} g6 {[%emt 0:00:03]} 3. Nc3 {[%emt 0:00:08]} d5 {[%emt 0:00:02]} 4. cxd5 {[%emt 0:00:09]} Nxd5 {[%emt 0:00:04]} 5. Bd2 {[%emt 0:00:12]} Bg7 {[%emt 0:00:54]} 6. e4 {[%emt 0:00:11]} Nxc3 {[%emt 0:00:04]} 7. Bxc3 {[%emt 0:00:16]} O-O {[%emt 0:00:03]} 8. Qd2 {[%emt 0:00:18]} c5 {[%emt 0:00:18]} 9. d5 {[%emt 0:00:25]} e6 {[%emt 0:00:04]} 10. Bc4 {[%emt 0:04:04]} exd5 {[%emt 0:00:36] The position is equal.} 11. Bxd5 {[%emt 0:01:39]} Nc6 {[%emt 0:00:18]} 12. Ne2 {[%emt 0:00:50] Dodges Nd4} Be6 {[%emt 0:03:36][%cal Oc6d4]} 13. Rd1 {[%emt 0:01:12]} Bxd5 {[%emt 0:13:40]} 14. Bxg7 {[%emt 0:04:05]} Kxg7 {[%emt 0:00:23]} 15. exd5 {[%emt 0:00:19]} Ne5 {[%emt 0:00:48]} 16. Qc3 {[%emt 0:08:28]} Qf6 {[%emt 0:00:09]} 17. O-O {[%emt 0:00:41]} Rfe8 {[%emt 0:02:52][%cal Oe5f3]} 18. Ng3 {[%emt 0:15:03][%cal Og3e4] Strongly threatening Ne4!} Nd7 {[%emt 0:00:35]} 19. Qc1 {[%emt 0:05:12]} Qd6 {[%emt 0:07:33]} 20. Qc3+ {[%emt 0:18:20]} Nf6 {[%emt 0:05:16]} 21. h4 {[%emt 0:06:11]} h5 {[%emt 0:05:15]} 22. Rd3 {[%emt 0:04:42]} Kg8 {[%emt 0:03:32][%cal Oe8e5]} 23. Rc1 {[%emt 0:03:42]} b6 {[%emt 0:03:36][%cal Oe8e5]} (23... Nxd5 $2 24. Qd2 $18) 24. Nf1 {[%emt 0:02:51]} ({White should play} 24. Rcd1 $15) 24... Re2 $17 {[%emt 0:01:51][%cal Of6e4] ...Ne4! is the strong threat.} (24... Nxd5 $2 25. Qd2 $18) 25. Ng3 {[%emt 0:08:50]} Re5 {[%emt 0:02:08][%cal Oa8e8] Black is more active.} (25... Nxd5 $2 26. Rxd5 (26. Nxe2 $2 Nxc3 27. Rdxc3 Qe7 $19) 26... Qxd5 27. Nxe2 $18) 26. Rcd1 {[%emt 0:00:08]} Rae8 $1 {[%emt 0:00:39][%cal Of6g4]} (26... Nxd5 $2 27. Qd2 $18) (26... Rxd5 $2 27. Rxd5 Nxd5 28. Qf3 $18) 27. a3 {[%emt 0:02:56]} Ng4 {[%emt 0:04:12]} (27... Rxd5 28. Rxd5 Nxd5 29. Qb3 $11) (27... Nxd5 $2 28. Qd2 c4 29. Rd4 $18 (29. Rxd5 $2 Rxd5 30. Qxd5 Re1+ 31. Rxe1 Qxd5 $19)) 28. b4 $2 {[%emt 0:04:50] [#] This costs White the game.} (28. Qc1 $17) 28... c4 $1 $19 {[%emt 0:01:05][%mdl 512]} 29. Rd4 {[%emt 0:03:15]} (29. Qxc4 $2 {is a self mate.} Re1+ 30. Rxe1 Rxe1+ 31. Nf1 Qh2#) (29. Rf3 Rxd5) 29... b5 {[%emt 0:04:08][%cal Og4f2]} 30. Nf1 {[%emt 0:01:04]} Re2 {[%emt 0:04:06]} 31. Qg3 {[%emt 0:01:10]} Qxg3 {[%emt 0:00:08]} 32. Nxg3 {[%emt 0:00:31]} (32. fxg3 Ra2 (32... Nf2 33. R1d2 $15) 33. d6) 32... Re1+ {[%emt 0:00:31] Black is clearly winning.} (32... Rxf2 $2 {perishes.} 33. Rxg4 $18) 33. Nf1 {[%emt 0:01:41]} c3 {[%emt 0:00:15] ( -> ...c2)} 34. d6 {[%emt 0:00:26] [#]} Nf6 $1 {[%emt 0:00:09] Weighted Error Value: White=0.35/Black=0.10 (very precise) .  Loses game:     	White=1     	---        Mistake:       	White=2     	---        Inaccurate:     	White=2     	Black=1      OK:         	White=9     	Black=13     Best:        	White=2     	Black=3      Strong:       	---       	Black=1      Brilliant:      	---       	Black=1} 0-1

[Event "German Bundesliga 2024-25"]
[Site "Germany"]
[Date "2024.11.30"]
[Round "3.10"]
[White "Aravindh, Chithambaram VR."]
[Black "Bjerre, Jonas Buhl"]
[Result "1-0"]
[Annotator "TA"]
[ECO "D38"]
[WhiteElo "2706"]
[BlackElo "2654"]
[PlyCount "111"]
[EventDate "2024.09.27"]
[EventType "team-tourn"]
[EventCountry "GER"]
[SourceTitle "playchess.com"]
[Source "ChessBase"]
[SourceQuality "1"]
[WhiteTeam "Viernheim"]
[BlackTeam "St. Pauli"]
[TimeControl "40/5400+30:1800+30"]

{[%evp 31,111,27,28,29,28,38,44,36,36,16,34,36,36,20,35,20,43,34,73,32,80,35,104,100,90,102,104,106,96,102,80,88,99,99,102,18,17,16,19,0,10,10,8,12,16,16,16,0,16,0,11,8,8,8,8,8,51,51,70,68,70,70,69,69,68,68,491,491,1843,1227,932,491,477,477,1118,1115,1108,1085,1045,1037,925,856]} 1. d4 {[%emt 0:00:04]} Nf6 {[%emt 0:00:08]} 2. Nf3 {[%emt 0:00:13]} d5 {[%emt 0:00:20]} 3. c4 {[%emt 0:00:10]} e6 {[%emt 0:00:28]} 4. Bg5 {[%emt 0:00:21]} Bb4+ {[%emt 0:03:28]} 5. Nc3 {[%emt 0:00:17]} h6 {[%emt 0:00:55]} 6. Bxf6 {[%emt 0:00:21]} Qxf6 {[%emt 0:00:12]} 7. e3 {[%emt 0:00:15]} c5 {[%emt 0:02:30]} 8. Rc1 {[%emt 0:14:01]} cxd4 {[%emt 0:02:21] D38: Queen's Gambit Declined: Ragozin Defence (4 Nf3 Bb4).} 9. Nxd4 {[%emt 0:00:21]} Nc6 {[%emt 0:01:11]} 10. cxd5 {[%emt 0:04:09]} exd5 {[%emt 0:00:06]} 11. Bb5 {[%emt 0:18:46]} O-O {[%emt 0:01:55]} 12. a3 $146 {[%emt 0:01:16]} ({Predecessor:} 12. O-O Bxc3 13. Rxc3 Nxd4 14. Qxd4 Qxd4 15. exd4 a6 16. Ba4 Be6 17. Rfc1 Rfc8 18. Bb3 Rxc3 19. Rxc3 {½-½ Kojima,S (2356)-Groszpeter,A (2456) Kecskemet Caissa GM New Year 2014 (8)}) 12... Nxd4 {[%emt 0:07:05]} 13. Qxd4 {[%emt 0:00:24]} Qxd4 {[%emt 0:03:31]} 14. exd4 {[%emt 0:00:03]} Bd6 {[%emt 0:18:49]} 15. Nxd5 {[%emt 0:02:31]} Rd8 {[%emt 0:05:39]} 16. Ne3 {[%emt 0:16:12]} Be7 {[%emt 0:11:47]} 17. d5 {[%emt 0:01:50]} Bf6 {[%emt 0:03:09]} 18. Rc2 {[%emt 0:00:24]} a6 {[%emt 0:00:59]} 19. Bd3 {[%emt 0:03:07]} Bd7 {[%emt 0:01:58]} 20. Ke2 {[%emt 0:02:48]} Ba4 {[%emt 0:03:36]} 21. Rd2 {[%emt 0:03:09]} Rac8 {[%emt 0:01:02]} 22. f4 {[%emt 0:04:18]} g6 {[%emt 0:05:50]} 23. Be4 {[%emt 0:04:49]} Kf8 {[%emt 0:02:11]} 24. Kf3 {[%emt 0:04:44]} Rc7 {[%emt 0:02:40]} 25. Rb1 {[%emt 0:03:07]} Bb3 {[%emt 0:06:02]} (25... Bb5 $14 {is superior.}) 26. Rd3 {[%emt 0:05:01]} Bc2 {[%emt 0:05:06]} (26... Ba4 $1 $14) 27. Rc1 {[%emt 0:08:08]} Bxd3 {[%emt 0:00:44]} 28. Rxc7 {[%emt 0:00:04]} Bxe4+ {[%emt 0:00:08]} 29. Kxe4 {[%emt 0:00:03]} Bxb2 {[%emt 0:00:42]} 30. Rxb7 {[%emt 0:01:11]} f5+ {[%emt 0:02:26]} 31. Kd3 {[%emt 0:01:54]} Bxa3 {[%emt 0:01:15]} 32. Rb6 {[%emt 0:00:58]} Kf7 {[%emt 0:03:38] [#]} 33. Rxa6 {[%emt 0:00:28]} ({White should try} 33. Kd4 $1 $16 {[%cal Oe3c4] Hoping for Nc4!} Bc1 34. Nc4 (34. Rxa6 Bxe3+ 35. Kxe3 Rxd5 $11) 34... Bxf4 35. g3 (35. Rxa6 Bxh2 36. Ra7+ Kf8 $11)) 33... Bc1 $1 $11 {[%emt 0:00:23]} 34. Ra7+ {[%emt 0:00:37]} Kf6 {[%emt 0:01:18]} 35. Ra6+ {[%emt 0:00:05]} Kf7 {[%emt 0:00:03]} 36. Ra5 {[%emt 0:01:15]} Re8 $1 {[%emt 0:00:38]} 37. Ra7+ {[%emt 0:00:14]} Kf6 {[%emt 0:01:20]} 38. Ra6+ {[%emt 0:00:05]} Kf7 {[%emt 0:00:42]} 39. Ra7+ {[%emt 0:00:18]} Kf6 {[%emt 0:00:06]} 40. Ra6+ {[%emt 0:00:10]} Kf7 {[%emt 0:00:33]} 41. Nc4 {[%emt 0:31:34]} Bxf4 {[%emt 0:31:33]} 42. g3 {[%emt 0:00:21]} Bb8 {[%emt 0:01:40]} 43. Kd4 {[%emt 0:00:00]} h5 {[%emt 0:00:00]} 44. d6 {[%emt 0:00:00]} Re2 {[%emt 0:00:00]} 45. Ra8 {[%emt 0:00:00]} Bxd6 {[%emt 0:00:00]} 46. Nxd6+ {[%emt 0:00:00]} Kf6 {[%emt 0:00:00]} 47. h4 {[%emt 0:00:00]} Rd2+ {[%emt 0:00:00]} 48. Kc5 {[%emt 0:00:00]} Rc2+ $2 {[%emt 0:00:00][%mdl 8192]} (48... Rd3 $14) 49. Nc4 $18 {[%emt 0:00:00]} g5 {[%emt 0:00:44]} (49... f4 $142 50. gxf4 Kf5) 50. Ra6+ $18 {[%emt 0:00:00]} Kg7 {[%emt 0:00:06]} 51. Kd5 {[%emt 0:00:00]} f4 {[%emt 0:02:25]} 52. gxf4 {[%emt 0:00:00]} ({Worse is} 52. hxg5 fxg3 53. Ne3 Rf2 $11) 52... gxh4 {[%emt 0:00:17]} (52... gxf4 $142 53. Ne5 Re2 54. Ra7+ Kg8) 53. Ne3 $18 {[%emt 0:01:12]} Rf2 {[%emt 0:00:27]} 54. Nf5+ {[%emt 0:00:38]} Kf7 {[%emt 0:00:21]} 55. Ke4 {[%emt 0:00:11]} ({Weaker is} 55. Nxh4 Rxf4 56. Ng6 Rf1 $11) 55... h3 {[%emt 0:00:50]} 56. Rh6 {[%emt 0:00:07]} 1-0

[Event "German Bundesliga 2024-25"]
[Site "Germany"]
[Date "2024.11.30"]
[Round "3.10"]
[White "Kasimdzhanov, Rustam"]
[Black "Laurusas, Tomas"]
[Result "1/2-1/2"]
[Annotator "TA"]
[ECO "D94"]
[WhiteElo "2685"]
[BlackElo "2579"]
[PlyCount "84"]
[EventDate "2024.09.27"]
[EventType "team-tourn"]
[EventCountry "GER"]
[SourceTitle "playchess.com"]
[Source "ChessBase"]
[SourceQuality "1"]
[WhiteTeam "Baden-Baden"]
[BlackTeam "Bad Mergentheim"]
[TimeControl "40/5400+30:1800+30"]

{[%evp 15,84,33,38,28,35,23,17,16,23,22,25,19,24,13,43,26,27,22,50,37,50,30,44,27,42,32,33,33,37,34,37,37,43,31,33,39,54,53,55,53,47,53,64,56,83,68,84,64,85,64,108,116,102,109,110,107,109,87,110,97,87,80,87,83,86,34,43,6,20,12,16]} 1. c4 {[%emt 0:00:34]} c6 {[%emt 0:00:13]} 2. d4 {[%emt 0:01:18]} d5 {[%emt 0:00:09]} 3. Nc3 {[%emt 0:00:05]} Nf6 {[%emt 0:00:10]} 4. e3 {[%emt 0:00:10]} g6 {[%emt 0:02:05]} 5. Nf3 {[%emt 0:02:04]} Bg7 {[%emt 0:00:11]} 6. Be2 {[%emt 0:00:27]} O-O {[%emt 0:00:16]} 7. O-O {[%emt 0:00:05]} a6 {[%emt 0:04:31]} 8. a4 {[%emt 0:04:23]} a5 {[%emt 0:00:16]} 9. b3 {[%emt 0:02:08]} Bg4 {[%emt 0:03:06]} 10. h3 {[%emt 0:02:13]} Bxf3 {[%emt 0:02:08]} 11. Bxf3 {[%emt 0:00:06]} e6 {[%emt 0:00:12]} 12. Ba3 {[%emt 0:07:44]} Re8 {[%emt 0:00:13]} 13. Qc2 {[%emt 0:00:18]} Bf8 {[%emt 0:18:26]} 14. Bb2 {[%emt 0:00:49]} Nbd7 {[%emt 0:00:12]} 15. Rad1 {[%emt 0:05:26]} Bg7 {[%emt 0:06:10]} 16. g3 {[%emt 0:10:16]} Qb6 {[%emt 0:05:18]} 17. Bg2 {[%emt 0:01:57]} Qa6 {[%emt 0:02:41]} 18. Nb1 {[%emt 0:06:51]} Rac8 {[%emt 0:00:16]} 19. Rfe1 {[%emt 0:05:53]} Red8 {[%emt 0:00:28]} 20. Nd2 {[%emt 0:01:14]} Qb6 {[%emt 0:01:34]} 21. Bc3 {[%emt 0:04:05]} Qc7 {[%emt 0:03:22]} 22. Rc1 {[%emt 0:07:21]} Ra8 {[%emt 0:04:47]} 23. Red1 {[%emt 0:03:18]} h5 {[%emt 0:06:32]} 24. Bb2 {[%emt 0:05:03]} Qb6 {[%emt 0:03:29]} 25. Nf3 {[%emt 0:02:28]} Rac8 {[%emt 0:01:06]} 26. Ne1 {[%emt 0:01:15]} Ra8 {[%emt 0:01:59]} 27. Bc3 {[%emt 0:03:35]} Qc7 {[%emt 0:00:08]} 28. Nd3 {[%emt 0:00:14]} Nb6 {[%emt 0:00:37][%cal Bd7b6,Bb6c8,Bc8d6][%mdl 32]} 29. Be1 {[%emt 0:01:47]} Nc8 {[%emt 0:00:28]} 30. Rb1 {[%emt 0:02:10]} Nd6 {[%emt 0:03:12]} 31. Rdc1 {[%emt 0:01:25]} Ra7 {[%emt 0:02:01]} 32. Qe2 {[%emt 0:01:55]} Rda8 {[%emt 0:01:43]} 33. g4 {[%emt 0:04:24]} hxg4 {[%emt 0:00:21]} 34. hxg4 {[%emt 0:00:05]} Qe7 {[%emt 0:00:09]} 35. f3 {[%emt 0:02:21]} Nd7 {[%emt 0:01:40]} 36. Bg3 {[%emt 0:03:01]} Re8 {[%emt 0:09:42]} 37. Ne5 {[%emt 0:03:40]} Rd8 {[%emt 0:12:00]} 38. Qf2 {[%emt 0:01:54]} Raa8 {[%emt 0:00:22]} 39. Bf1 {[%emt 0:01:04]} Ne8 {[%emt 0:02:07]} 40. Nd3 {[%emt 0:04:35] White is more active.} (40. f4 $16) 40... e5 $14 {[%emt 0:03:41]} 41. cxd5 {[%emt 0:12:54]} cxd5 {[%emt 0:01:04]} 42. Kg2 {[%emt 0:08:29]} Rac8 {[%emt 0:03:48] Weighted Error Value: White=0.11 (very precise) /Black=0.08 (flawless) .  Mistake:       	White=1     	---        Inaccurate:     	White=1     	Black=4      OK:         	White=8     	Black=9      Best:        	---       	Black=2} 1/2-1/2

[Event "German Bundesliga 2024-25"]
[Site "Germany"]
[Date "2024.11.30"]
[Round "3.10"]
[White "Santos Latasa, Jaime"]
[Black "Fridman, Daniel"]
[Result "1/2-1/2"]
[Annotator "ChessBase"]
[ECO "D35"]
[WhiteElo "2630"]
[BlackElo "2581"]
[PlyCount "89"]
[EventDate "2024.09.27"]
[EventType "team-tourn"]
[EventCountry "GER"]
[SourceTitle "playchess.com"]
[Source "ChessBase"]
[SourceQuality "1"]
[WhiteTeam "Bayern Muenchen"]
[BlackTeam "Muelheim Nord"]
[TimeControl "40/5400+30:1800+30"]

1. c4 {[%emt 0:00:02]} e6 {[%emt 0:00:50]} 2. Nc3 {[%emt 0:00:14]} d5 {[%emt 0:01:09]} 3. d4 {[%emt 0:00:16]} Be7 {[%emt 0:01:31]} 4. cxd5 {[%emt 0:02:09]} exd5 {[%emt 0:00:06]} 5. Bf4 {[%emt 0:00:04]} Nf6 {[%emt 0:00:07]} 6. e3 {[%emt 0:00:06]} Bf5 {[%emt 0:00:05]} 7. Qb3 {[%emt 0:02:56]} Nc6 {[%emt 0:00:21]} 8. g4 {[%emt 0:01:30]} Nxg4 {[%emt 0:00:08]} 9. Qxd5 {[%emt 0:00:10]} Qc8 {[%emt 0:04:49]} 10. a3 {[%emt 0:01:52]} O-O {[%emt 0:05:33]} 11. Rd1 {[%emt 0:04:05]} Re8 {[%emt 0:04:06]} 12. Nge2 {[%emt 0:05:33]} Bh4 {[%emt 0:11:49]} 13. Bg3 {[%emt 0:02:32]} Nf6 {[%emt 0:02:32]} 14. Qg2 {[%emt 0:02:39]} Bxg3 {[%emt 0:00:07]} 15. Qxg3 {[%emt 0:07:30]} Ne7 {[%emt 0:13:26]} 16. Rg1 {[%emt 0:04:55]} Ng6 {[%emt 0:03:43]} 17. Nf4 {[%emt 0:02:58]} Bg4 {[%emt 0:03:17]} 18. Rd2 {[%emt 0:03:59]} Qf5 {[%emt 0:07:37]} 19. Nfd5 {[%emt 0:05:38]} Nxd5 {[%emt 0:02:53]} 20. Qxg4 {[%emt 0:00:29]} Qxg4 {[%emt 0:03:40]} 21. Rxg4 {[%emt 0:00:30]} Nxc3 {[%emt 0:04:39]} 22. bxc3 {[%emt 0:00:46]} Rad8 {[%emt 0:00:02]} 23. Rg5 {[%emt 0:02:45]} b6 {[%emt 0:00:32]} 24. a4 {[%emt 0:02:28]} Ne7 {[%emt 0:06:13]} 25. Bg2 {[%emt 0:06:24]} Rd6 {[%emt 0:01:57]} 26. Ke2 {[%emt 0:04:14]} f5 {[%emt 0:02:50]} 27. Bf3 {[%emt 0:02:08]} Rh6 {[%emt 0:00:43]} 28. Rh5 {[%emt 0:00:27]} Rxh5 {[%emt 0:02:18]} 29. Bxh5 {[%emt 0:00:15]} Rd8 {[%emt 0:00:13]} 30. Bf3 {[%emt 0:00:48]} Rd6 {[%emt 0:00:36]} 31. h3 {[%emt 0:00:23]} Kf7 {[%emt 0:08:33]} 32. Rb2 {[%emt 0:03:05]} Rh6 {[%emt 0:03:09]} 33. Bg2 {[%emt 0:00:53]} Rg6 {[%emt 0:00:29]} 34. Kf1 {[%emt 0:00:27]} Ke6 {[%emt 0:00:55]} 35. c4 {[%emt 0:08:04]} Kd6 {[%emt 0:02:36]} 36. a5 {[%emt 0:02:01]} Nc6 {[%emt 0:01:29]} 37. axb6 {[%emt 0:02:22]} axb6 {[%emt 0:00:05]} 38. Rb5 {[%emt 0:02:06]} Ne7 {[%emt 0:00:09]} 39. Rb1 {[%emt 0:01:36]} Rf6 {[%emt 0:01:06]} 40. Ra1 {[%emt 0:01:10]} Rf8 {[%emt 0:01:10]} 41. Ra6 {[%emt 0:30:54]} Kd7 {[%emt 0:03:44]} 42. Ke2 {[%emt 0:00:00]} Rf6 {[%emt 0:04:57]} 43. Ra8 {[%emt 0:00:00]} Rg6 {[%emt 0:04:45]} 44. Kf1 {[%emt 0:00:45]} Nc8 {[%emt 0:01:49]} 45. Bf3 {[%emt 0:00:00]} 1/2-1/2